fUSD/lending_fUSD_20250506
["ID","MTS","AMOUNT","RATE_DAILY","PERIOD"]
[360070673,1746535850811,-450.0,0.00019898,2]
[360070674,1746535850820,-288.62,0.00019898,2]
[360070675,1746535850830,-450.0,0.00019898,2]
[360070676,1746535850839,-450.0,0.00019898,2]
[360070677,1746535850849,-450.0,0.00019898,2]
[360070678,1746535850858,-450.0,0.00019898,2]
[360070679,1746535850867,-450.0,0.00019898,2]
[360070680,1746535850877,-450.0,0.00019898,2]
[360070681,1746535850886,-19.6620419,0.00019898,2]
[360070682,1746535850914,-450.0,0.00019695,2]
[360070683,1746535850923,-430.3379581,0.00019898,2]
[360070684,1746535850934,-450.0,0.00019898,2]
[360070685,1746535850944,-450.0,0.00019898,2]
[360070686,1746535850953,-4443.61323092,0.00019898,2]
[360070687,1746535850964,-500.0,0.00019898,2]
[360070688,1746535850975,-577.46205938,0.00019898,2]
[360070689,1746535850986,-2088.6047097,0.00019898,2]
[360070690,1746535850996,-450.0,0.00019898,2]
[360070691,1746535851005,-450.0,0.00019898,2]
[360070692,1746535851014,-450.0,0.00019898,2]
[360070693,1746535851024,-450.0,0.00019898,2]
[360070694,1746535851033,-487.27,0.00019898,2]
[360070695,1746535851043,-450.0,0.00019898,2]
[360070696,1746535851052,-211.97,0.00019898,2]
[360070697,1746535851061,-450.0,0.00019898,2]
[360070698,1746535851070,-303.47706883,0.00019898,2]
[360070699,1746535851080,-563.56,0.00019898,2]
[360070700,1746535851089,-1662.45,0.00019898,2]
[360070701,1746535851098,-450.0,0.00019898,2]
[360070702,1746535851108,-450.0,0.00019898,2]
[360070703,1746535851117,-873.61,0.00019898,2]
[360070704,1746535851127,-473.64,0.00019898,2]
[360070705,1746535851136,-450.0,0.00019898,2]
[360070706,1746535851144,-450.0,0.00019898,2]
[360070707,1746535851154,-1729.72,0.00019898,2]
[360070708,1746535851163,-450.0,0.00019898,2]
[360070709,1746535851172,-5327.06056847,0.00019898,2]
[360070710,1746535851184,-1000.0,0.00019898,2]
[360070711,1746535851194,-653.6903468,0.00019898,2]
[360070712,1746535851205,-9736.16908473,0.00019898,2]
[360070713,1746535851215,-450.0,0.00019898,2]
[360070714,1746535851225,-450.0,0.00019898,2]
[360070715,1746535851234,-314.59,0.00019899,2]
[360070716,1746535851244,-450.0,0.00019899,2]
[360070717,1746535851253,-450.0,0.00019899,2]
[360070718,1746535851262,-450.0,0.00019899,2]
[360070719,1746535851273,-450.0,0.00019899,2]
[360070720,1746535851282,-604.81,0.00019899,2]
[360070721,1746535851291,-450.0,0.00019899,2]
[360070722,1746535851301,-450.0,0.00019899,2]
[360070723,1746535851310,-500.0,0.00019899,2]
[360070724,1746535851321,-450.0,0.00019899,2]
[360070725,1746535851330,-450.0,0.00019899,2]
[360070726,1746535851340,-450.0,0.00019899,2]
[360070727,1746535851349,-450.0,0.00019899,2]
[360070728,1746535851359,-450.0,0.00019899,2]
[360070729,1746535851368,-450.0,0.00019899,2]
[360070730,1746535851377,-450.0,0.00019899,2]
[360070731,1746535851386,-417.83266766,0.00019899,2]
[360070732,1746535851395,-450.0,0.00019899,2]
[360070733,1746535851405,-450.0,0.00019899,2]
[360070734,1746535851414,-450.0,0.00019899,2]
[360070735,1746535851423,-450.0,0.00019899,2]
[360070736,1746535851433,-450.0,0.00019899,2]
[360070737,1746535851442,-511.45306522,0.00019899,2]
[360070738,1746535851451,-450.0,0.00019899,2]
[360070739,1746535851461,-450.0,0.00019899,2]
[360070740,1746535851470,-450.0,0.00019899,2]
[360070741,1746535851481,-450.0,0.00019899,2]
[360070742,1746535851490,-450.0,0.00019899,2]
[360070743,1746535851500,-450.0,0.00019899,2]
[360070744,1746535851510,-532.02,0.00019899,2]
[360070745,1746535851519,-291.81578175,0.00019899,2]
[360070746,1746535851530,-450.0,0.00019899,2]
[360070747,1746535851540,-450.0,0.00019899,2]
[360070748,1746535851549,-450.0,0.00019899,2]
[360070749,1746535851559,-450.0,0.00019899,2]
[360070750,1746535851568,-450.0,0.00019899,2]
[360070751,1746535851578,-351.24358516,0.00019899,2]
[360070752,1746535851587,-299.16,0.00019899,2]
[360070753,1746535851597,-553.36040774,0.00019899,2]
[360070754,1746535851606,-450.0,0.00019899,2]
[360070755,1746535851615,-450.0,0.00019899,2]
[360070756,1746535851625,-377.65237577,0.00019899,2]
[360070757,1746535851635,-450.0,0.00019899,2]
[360070758,1746535851645,-450.0,0.00019899,2]
[360070759,1746535851655,-450.0,0.00019899,2]
[360070760,1746535851668,-450.0,0.00019899,2]
[360070761,1746535851678,-319.23,0.00019899,2]
[360070762,1746535851688,-450.0,0.00019899,2]
[360070763,1746535851698,-450.0,0.00019899,2]
[360070764,1746535851709,-374.8005269,0.00019899,2]
[360070765,1746535851719,-450.0,0.00019899,2]
[360070766,1746535851729,-450.0,0.00019899,2]
[360070767,1746535851739,-430.8,0.00019899,2]
[360070768,1746535851750,-450.0,0.00019899,2]
[360070769,1746535851760,-450.0,0.00019899,2]
[360070770,1746535851769,-450.0,0.00019899,2]
[360070771,1746535851779,-453.5115,0.00019899,2]
[360070772,1746535851789,-450.0,0.00019899,2]
[360070773,1746535851798,-450.0,0.00019899,2]
[360070774,1746535851809,-450.0,0.00019899,2]
[360070775,1746535851818,-450.0,0.00019899,2]
[360070776,1746535851828,-450.0,0.00019899,2]
[360070777,1746535851837,-450.0,0.00019899,2]
[360070778,1746535851846,-450.0,0.00019899,2]
[360070779,1746535851856,-450.0,0.00019899,2]
[360070780,1746535851867,-441.43,0.00019899,2]
[360070781,1746535851877,-450.0,0.00019899,2]
[360070782,1746535851887,-30.09760975,0.00019899,2]
[360070783,1746535851900,-419.90239025,0.00019899,2]
[360070784,1746535851910,-447.99532172,0.00019899,2]
[360070785,1746535852128,-52.00467828,0.00019899,2]
[360070786,1746535852138,-450.0,0.00019899,2]
[360070787,1746535852147,-450.0,0.00019899,2]
[360070788,1746535852157,-450.0,0.00019899,2]
[360070789,1746535852167,-267.93237504,0.00019899,2]
[360070790,1746535852178,-182.06762496,0.00019899,2]
[360070791,1746535852187,-450.0,0.00019899,2]
[360070792,1746535852197,-450.0,0.00019899,2]
[360070793,1746535852206,-450.0,0.00019899,2]
[360070794,1746535852216,-450.0,0.00019899,2]
[360070795,1746535852225,-450.0,0.00019899,2]
[360070796,1746535852236,-450.0,0.00019899,2]
[360070797,1746535852246,-450.0,0.00019899,2]
[360070798,1746535852255,-450.0,0.00019899,2]
[360070799,1746535852265,-723.11,0.00019899,2]
[360070800,1746535852275,-450.0,0.00019899,2]
[360070801,1746535852284,-450.0,0.00019899,2]
[360070802,1746535852294,-450.0,0.00019899,2]
[360070803,1746535852303,-450.0,0.00019899,2]
[360070804,1746535852314,-450.0,0.00019899,2]
[360070805,1746535852323,-461.90192308,0.00019899,2]
[360070806,1746535852333,-450.0,0.00019899,2]
[360070807,1746535852344,-438.79928647,0.00019899,2]
[360070808,1746535852353,-450.0,0.00019899,2]
[360070809,1746535852362,-450.0,0.00019899,2]
[360070810,1746535852371,-450.0,0.00019899,2]
[360070811,1746535852380,-450.0,0.00019899,2]
[360070812,1746535852391,-450.0,0.00019899,2]
[360070813,1746535852400,-752.45210149,0.00019899,2]
[360070814,1746535852412,-631.44,0.00019899,2]
[360070815,1746535852423,-1356.4999996,0.00019899,2]
[360070816,1746535852434,-485.305,0.00019899,2]
[360070817,1746535852446,-1849.17996934,0.00019899,2]
[360070818,1746535852457,-2534.80292957,0.00019899,2]
[360070819,1746535852467,-450.0,0.00019899,2]
[360070820,1746535852476,-675.8,0.00019899,2]
[360070821,1746535852487,-326.39,0.00019899,2]
[360070822,1746535852496,-675.8,0.00019899,2]
[360070823,1746535852506,-450.0,0.00019899,2]
[360070824,1746535852515,-270.8,0.00019899,2]
[360070825,1746535852525,-450.0,0.00019899,2]
[360070826,1746535852534,-300.12,0.00019899,2]
[360070827,1746535852543,-563.56,0.00019899,2]
[360070828,1746535852552,-450.0,0.00019899,2]
[360070829,1746535852562,-1662.45,0.00019899,2]
[360070830,1746535852572,-450.0,0.00019899,2]
[360070831,1746535852581,-450.0,0.00019899,2]
[360070832,1746535852591,-873.61,0.00019899,2]
[360070833,1746535852600,-450.0,0.00019899,2]
[360070834,1746535852610,-403.77221371,0.00019899,2]
[360070835,1746535852621,-46.22778629,0.00019899,2]
[360070836,1746535852631,-1729.72,0.00019899,2]
[360070837,1746535852640,-450.0,0.00019899,2]
[360070838,1746535852649,-648.4,0.00019899,2]
[360070839,1746535852659,-6778.13782146,0.00019899,2]
[360070840,1746535852784,-2513.09890421,0.00019899,2]
[360070841,1746535852799,-2066.8021701,0.00019899,2]
[360070842,1746535852811,-506.62630079,0.00019899,2]
[360070843,1746535852822,-352.72799642,0.00019899,2]
[360070844,1746535852833,-2527.48455261,0.00019899,2]
[360070845,1746535852844,-1972.04225441,0.00019899,2]
[360070846,1746535852854,-450.0,0.00019899,2]
[360070847,1746535852863,-450.0,0.00019899,2]
[360070848,1746535852872,-30.99774587,0.000199,2]
[360070849,1746535852883,-431.899998,0.000199,2]
[360070850,1746535852893,-12037.10225613,0.000199,2]
[360070851,1746535852902,-417.95082027,0.000199,2]
[360070852,1746535852911,-275.08140563,0.000199,2]
[360070853,1746535852920,-7320.39364777,0.000199,2]
[360070854,1746535852931,-471.928098,0.000199,2]
[360070855,1746535852941,-263.13035318,0.000199,2]
[360070856,1746535852952,-450.0,0.000199,2]
[360070857,1746535853022,-151.0,0.00019791,2]
[360070858,1746535853031,-3994.54790105,0.000199,2]
[360070859,1746535853040,-11852.15978714,0.000199,2]
[360070860,1746535853049,-5800.0,0.000199,2]
[360070861,1746535853059,-151.0,0.000199,2]
[360070862,1746535853067,-163.215413,0.000199,2]
[360070863,1746535853076,-151.0,0.000199,2]
[360070864,1746535853085,-45671.36571777,0.000199,2]
[360070865,1746535853096,-683.21054471,0.000199,2]
[360070866,1746535853107,-536.91118955,0.000199,2]
[360070867,1746535853144,-1526.77504163,0.000199,2]
[360070868,1746535853155,-322.05448939,0.000199,2]
[360070869,1746535853166,-47664.54889142,0.000199,2]
[360070870,1746535853177,-1417.56443875,0.000199,2]
[360070871,1746535853188,-320.2207373,0.000199,2]
[360070872,1746535853199,-2508.77207442,0.000199,2]
[360070873,1746535853210,-1661.4457,0.000199,2]
[360070874,1746535853222,-467.96961399,0.000199,2]
[360070875,1746535853234,-53884.12943607,0.000199,2]
[360070876,1746535853244,-9624.34350446,0.000199,2]
[360070877,1746535853253,-1000.0,0.000199,2]
[360070878,1746535853261,-495.735662,0.000199,2]
[360070879,1746535853270,-495.735662,0.000199,2]
[360070880,1746535853280,-3294.40443724,0.000199,2]
[360070881,1746535853289,-376.19560847,0.000199,2]
[360070882,1746535853298,-151.0,0.000199,2]
[360070883,1746535853307,-653.81968816,0.000199,2]
[360070884,1746535853316,-150.0,0.00019918,7]
[360070885,1746535853325,-941.0,0.00019972,2]
[360070886,1746535853334,-450.0,0.00019972,2]
[360070887,1746535853344,-450.0,0.00019972,2]
[360070888,1746535853353,-222.86,0.00019972,2]
[360070889,1746535853362,-604.81,0.00019972,2]
[360070890,1746535853371,-450.0,0.00019972,2]
[360070891,1746535853379,-511.83843119,0.00019972,2]
[360070892,1746535853388,-450.0,0.00019972,2]
[360070893,1746535853397,-450.0,0.00019972,2]
[360070894,1746535853406,-450.0,0.00019972,2]
[360070895,1746535853415,-450.0,0.00019972,2]
[360070896,1746535853424,-450.0,0.00019972,2]
[360070897,1746535853433,-450.0,0.00019972,2]
[360070898,1746535853442,-450.0,0.00019972,2]
[360070899,1746535853451,-450.0,0.00019972,2]
[360070900,1746535853460,-450.0,0.00019972,2]
[360070901,1746535853469,-450.0,0.00019972,2]
[360070902,1746535853478,-450.0,0.00019972,2]
[360070903,1746535853489,-450.0,0.00019972,2]
[360070904,1746535853498,-450.0,0.00019972,2]
[360070905,1746535853507,-450.0,0.00019972,2]
[360070906,1746535853515,-450.0,0.00019972,2]
[360070907,1746535853525,-532.02,0.00019972,2]
[360070908,1746535853534,-533.28040026,0.00019972,2]
[360070909,1746535853543,-450.0,0.00019972,2]
[360070910,1746535853552,-450.0,0.00019972,2]
[360070911,1746535853562,-450.0,0.00019972,2]
[360070912,1746535853571,-450.0,0.00019972,2]
[360070913,1746535853581,-450.0,0.00019972,2]
[360070914,1746535853591,-450.0,0.00019972,2]
[360070915,1746535853601,-269.85900909,0.00019972,2]
[360070916,1746535853611,-450.0,0.00019972,2]
[360070917,1746535853620,-305.58125092,0.00019972,2]
[360070918,1746535853629,-450.0,0.00019972,2]
[360070919,1746535853639,-450.0,0.00019972,2]
[360070920,1746535853649,-450.0,0.00019972,2]
[360070921,1746535853658,-18203.0,0.00019973,2]
[360070922,1746535853671,-1043.0,0.00019973,2]
[360070923,1746535853680,-300.0,0.00019973,2]
[360070924,1746535853689,-154.295726,0.00019973,2]
[360070925,1746535853700,-221.239288,0.00019973,2]
[360070926,1746535853711,-221.239288,0.00019973,2]
[360070927,1746535853720,-151.0,0.00019973,2]
[360070928,1746535853730,-151.0,0.00019973,2]
[360070929,1746535853740,-151.0,0.00019973,2]
[360070930,1746535853750,-151.0,0.00019973,2]
[360070931,1746535853759,-236.81207,0.00019973,2]
[360070932,1746535853768,-236.81207,0.00019973,2]
[360070933,1746535853778,-177.551473,0.00019973,2]
[360070934,1746535853787,-177.551473,0.00019973,2]
[360070935,1746535853796,-277.304365,0.00019973,2]
[360070936,1746535853806,-277.304365,0.00019973,2]
[360070937,1746535853816,-154.600672,0.00019973,2]
[360070938,1746535853825,-151.0,0.00019973,2]
[360070939,1746535853834,-151.0,0.00019973,2]
[360070940,1746535853843,-151.0,0.00019973,2]
[360070941,1746535853853,-151.0,0.00019973,2]
[360070942,1746535853862,-926.0,0.00019975,2]
[360070943,1746535853871,-1301.0,0.00019975,2]
[360070944,1746535853881,-798.0,0.00019975,2]
[360070945,1746535853890,-551.0,0.00019975,2]
[360070946,1746535853899,-1452.0,0.00019975,2]
[360070947,1746535853909,-916.0,0.00019975,2]
[360070948,1746535853919,-1243.0,0.00019975,2]
[360070949,1746535853928,-582.0,0.00019975,2]
[360070950,1746535853937,-180.605,0.00019975,2]
[360070951,1746535853946,-2648.03090385,0.00019975,2]
[360070952,1746535853960,-1366.96909615,0.00019975,2]
[360070953,1746535853969,-275.675,0.00019975,2]
[360070954,1746535853979,-878.0,0.00019975,2]
[360070955,1746535853989,-879.0,0.00019975,2]
[360070956,1746535853999,-780.67537625,0.00019975,2]
[360070957,1746535854010,-5207.40168378,0.00019975,2]
[360070958,1746535854021,-775.92293997,0.00019975,2]
[360070959,1746535854031,-154.238,0.00019975,2]
[360070960,1746535854040,-450.0,0.00019982,2]
[360070961,1746535854049,-450.0,0.00019982,2]
[360070962,1746535854059,-398.39,0.00019982,2]
[360070963,1746535854068,-450.0,0.00019982,2]
[360070964,1746535854077,-450.0,0.00019982,2]
[360070965,1746535854086,-450.0,0.00019982,2]
[360070966,1746535854095,-450.0,0.00019982,2]
[360070967,1746535854104,-648.4,0.00019982,2]
[360070968,1746535854114,-450.0,0.00019985,2]
[360070969,1746535854123,-450.0,0.00019985,2]
[360070970,1746535854132,-450.0,0.00019985,2]
[360070971,1746535854141,-4184.99213127,0.00019985,2]
[360070972,1746535857790,500.0,0.00019497,2]
[360070973,1746535917245,13003.3413,0.00019497,2]
[360070974,1746535982928,500.0,0.00019497,2]
[360070975,1746535986813,1000.0,0.00019497,2]
[360070976,1746536011544,2705.0052,0.00019497,2]
[360070977,1746536128169,4832.24,0.0003,30]
[360070978,1746536229105,300.0,0.0003,30]
[360070979,1746536230677,1067.11397587,0.00019493,2]
[360070980,1746536231001,1067.11397587,0.00019495,2]
[360070981,1746536403812,-166.28819078,0.00019547,2]
[360070982,1746536403836,-33.71180922,0.00019547,2]
[360070983,1746536410093,-371.59409298,0.00019547,2]
[360070984,1746536421396,250.0,0.0001887,2]
[360070985,1746536421419,750.0,0.0001887,2]
[360070986,1746536429917,598.08,0.00016953,2]
[360070987,1746536430308,598.08,0.00019217,2]
[360070988,1746536467969,582.42522966,0.00019498,2]
[360070989,1746536528776,1333.0,0.00029041,120]
[360071000,1746536537801,504.01,0.0003,30]
[360071016,1746536561169,504.01,0.0003,30]
[360071017,1746536571794,163.01,0.00019183,2]
[360071018,1746536630761,377.6611,0.00019493,2]
[360071019,1746536703516,2500.0,0.00019494,2]
[360071020,1746536704162,-166.06920612,0.00019528,2]
[360071021,1746536719799,200.00754534,0.00029,30]
[360071022,1746536754793,158.31,0.00018621,2]
[360071023,1746536789606,8243.26551542,0.00019491,2]
[360071025,1746536818315,3000.0,0.0003,30]
[360071026,1746536818793,500.0,0.00019493,2]
[360071027,1746536823353,582.42522966,0.00019491,2]
[360071028,1746536848752,536.74955096,0.00019494,2]
[360071029,1746536873281,2500.0,0.00019491,2]
[360071030,1746536882183,28569.1175,0.00019491,2]
[360071031,1746536905268,432.094873,0.00019268,2]
[360071032,1746536955109,1000.0,0.00019491,2]
[360071033,1746536959564,166.3091093,0.00019494,2]
[360071034,1746536985770,4159.4731,0.00019491,2]
[360071053,1746537032096,-161.3413666,0.0001952,2]
[360071054,1746537032106,-1200.0,0.00019535,2]
[360071055,1746537032115,-158.75740329,0.00019536,2]
[360071056,1746537032129,-200.0,0.00019536,2]
[360071057,1746537032138,-3321.61334639,0.00019536,2]
[360071058,1746537032209,-4921.65216901,0.00019536,2]
[360071059,1746537032219,-300.0,0.00019538,2]
[360071060,1746537032229,-536.74955093,0.00019539,2]
[360071061,1746537032239,-200.0,0.00019541,2]
[360071062,1746537032248,-300.0,0.00019546,2]
[360071063,1746537032258,-151.0,0.00019547,2]
[360071064,1746537032267,-73.72783569,0.00019547,2]
[360071065,1746537032276,-4152.44804089,0.00019547,3]
[360071066,1746537032285,-200.0,0.00019547,2]
[360071067,1746537032294,-166.3091093,0.00019552,2]
[360071068,1746537032303,-3935.3145,0.00019562,2]
[360071069,1746537032313,-207.4,0.00019581,2]
[360071070,1746537032322,-8243.2655154,0.00019582,2]
[360071071,1746537032331,-468.59969758,0.00019583,2]
[360071072,1746537032340,-214.5,0.00019583,2]
[360071073,1746537032350,-214.5,0.00019583,2]
[360071074,1746537032359,-214.5,0.00019583,2]
[360071075,1746537032368,-2443.51,0.00019583,2]
[360071076,1746537032377,-151.0,0.00019583,2]
[360071077,1746537032386,-151.0,0.00019583,2]
[360071078,1746537032396,-155.0,0.00019583,2]
[360071079,1746537032405,-471.31854507,0.00019583,2]
[360071158,1746537038136,-197.3333125,0.00019583,2]
[360071159,1746537038146,-214.5,0.00019584,2]
[360071160,1746537038155,-214.5,0.00019584,2]
[360071161,1746537038164,-214.5,0.00019584,2]
[360071162,1746537038174,-214.5,0.00019584,2]
[360071163,1746537038183,-214.5,0.00019584,2]
[360071164,1746537038192,-31.6466875,0.00019584,2]
[360071165,1746537038217,-182.8533125,0.00019584,2]
[360071166,1746537038226,-214.5,0.00019584,2]
[360071167,1746537038235,-536.74955093,0.00019584,2]
[360071168,1746537038246,-850.0,0.00019589,2]
[360071169,1746537038255,-4811.93368657,0.0001959,5]
[360071170,1746537038266,-3731.23953936,0.0001959,5]
[360071171,1746537038466,-890.54535279,0.0001959,5]
[360071320,1746537040368,-22.62643336,0.0001959,5]
[360071324,1746537040395,-6728.28061611,0.0001959,5]
[360071334,1746537040482,-13848.388184,0.0001959,5]
[360071336,1746537040491,-477.54210262,0.00019592,2]
[360071338,1746537040500,-470.0,0.00019592,2]
[360071340,1746537040509,-500.0,0.00019592,2]
[360071342,1746537040519,-450.0,0.00019592,2]
[360071344,1746537040528,-563.05509097,0.00019592,2]
[360071346,1746537040537,-231.4127036,0.00019592,2]
[360071348,1746537040546,-562.30898106,0.00019592,2]
[360071350,1746537040555,-251.87091155,0.00019592,2]
[360071352,1746537040564,-490.87,0.00019592,2]
[360071354,1746537040574,-450.0,0.00019592,2]
[360071356,1746537040583,-450.0,0.00019592,2]
[360071358,1746537040594,-450.0,0.00019592,2]
[360071360,1746537040603,-450.0,0.00019592,2]
[360071362,1746537040613,-450.0,0.00019592,2]
[360071363,1746537040622,-450.0,0.00019592,2]
[360071366,1746537040632,-450.0,0.00019592,2]
[360071368,1746537040642,-450.0,0.00019592,2]
[360071369,1746537040651,-450.0,0.00019592,2]
[360071371,1746537040660,-450.0,0.00019592,2]
[360071374,1746537040669,-450.0,0.00019592,2]
[360071375,1746537040680,-500.0,0.00019592,2]
[360071378,1746537040689,-477.85322148,0.00019592,2]
[360071380,1746537040699,-500.0,0.00019592,2]
[360071382,1746537040708,-420.94371373,0.00019592,2]
[360071384,1746537040717,-298.07302448,0.00019592,2]
[360071386,1746537040726,-348.63567882,0.00019592,2]
[360071388,1746537040736,-450.0,0.00019592,2]
[360071390,1746537040746,-450.0,0.00019592,2]
[360071392,1746537040755,-450.0,0.00019592,2]
[360071393,1746537040764,-450.0,0.00019592,2]
[360071395,1746537040774,-764.89,0.00019592,2]
[360071397,1746537040783,-591.99632215,0.00019592,2]
[360071399,1746537040793,-450.0,0.00019592,2]
[360071402,1746537040803,-450.0,0.00019592,2]
[360071403,1746537040812,-450.0,0.00019592,2]
[360071405,1746537040822,-1783.2421324,0.00019592,2]
[360071407,1746537040831,-1783.2421324,0.00019592,2]
[360071409,1746537040840,-1783.2421324,0.00019592,2]
[360071411,1746537040850,-1783.2421324,0.00019592,2]
[360071413,1746537040859,-1783.2421324,0.00019592,2]
[360071416,1746537040870,-1783.2421324,0.00019592,2]
[360071417,1746537040879,-1783.2421324,0.00019592,2]
[360071420,1746537040889,-1783.2421324,0.00019592,2]
[360071421,1746537040899,-1783.2421324,0.00019592,2]
[360071423,1746537040908,-1783.2421324,0.00019592,2]
[360071425,1746537040918,-1783.2421324,0.00019592,2]
[360071427,1746537040927,-1783.2421324,0.00019592,2]
[360071429,1746537040936,-1783.2421324,0.00019592,2]
[360071431,1746537040945,-1783.2421324,0.00019592,2]
[360071433,1746537040955,-450.0,0.00019592,2]
[360071435,1746537040964,-1783.2421324,0.00019592,2]
[360071437,1746537040973,-1783.2421324,0.00019592,2]
[360071439,1746537040984,-1783.2421324,0.00019592,2]
[360071441,1746537040994,-1783.2421324,0.00019592,2]
[360071443,1746537041003,-1783.2421324,0.00019592,2]
[360071445,1746537041013,-1783.2421324,0.00019592,2]
[360071447,1746537041022,-1783.2421324,0.00019592,2]
[360071449,1746537041032,-1783.2421324,0.00019592,2]
[360071451,1746537041042,-1783.2421324,0.00019592,2]
[360071453,1746537041051,-1783.2421324,0.00019592,2]
[360071455,1746537041060,-1783.2421324,0.00019592,2]
[360071457,1746537041070,-1783.2421324,0.00019592,2]
[360071459,1746537041078,-1783.2421324,0.00019592,2]
[360071461,1746537041088,-1783.2421324,0.00019592,2]
[360071463,1746537041097,-1783.2421324,0.00019592,2]
[360071465,1746537041106,-1783.2421324,0.00019592,2]
[360071467,1746537041115,-1783.2421324,0.00019592,2]
[360071469,1746537041124,-1783.2421324,0.00019592,2]
[360071471,1746537041134,-1783.2421324,0.00019592,2]
[360071473,1746537041146,-1783.2421324,0.00019592,2]
[360071475,1746537041155,-1783.2421324,0.00019592,2]
[360071477,1746537041165,-1783.2421324,0.00019592,2]
[360071479,1746537041174,-1783.2421324,0.00019592,2]
[360071481,1746537041186,-1783.2421324,0.00019592,2]
[360071483,1746537041196,-1783.2421324,0.00019592,2]
[360071485,1746537041205,-1783.2421324,0.00019592,2]
[360071487,1746537041214,-1783.2421324,0.00019592,2]
[360071489,1746537041224,-1783.2421324,0.00019592,2]
[360071491,1746537041233,-1783.2421324,0.00019592,2]
[360071493,1746537041243,-1783.2421324,0.00019592,2]
[360071495,1746537041252,-1783.2421324,0.00019592,2]
[360071497,1746537041262,-1783.2421324,0.00019592,2]
[360071499,1746537041271,-1783.2421324,0.00019592,2]
[360071501,1746537041282,-450.0,0.00019592,2]
[360071503,1746537041291,-450.0,0.00019592,2]
[360071505,1746537041301,-450.0,0.00019592,2]
[360071506,1746537041310,-450.0,0.00019592,2]
[360071509,1746537041320,-450.0,0.00019592,2]
[360071511,1746537041329,-450.0,0.00019592,2]
[360071512,1746537041338,-450.0,0.00019592,2]
[360071514,1746537041347,-450.0,0.00019592,2]
[360071516,1746537041356,-450.0,0.00019592,2]
[360071518,1746537041366,-450.0,0.00019592,2]
[360071520,1746537041375,-172.393343,0.00019592,2]
[360071523,1746537041384,-450.0,0.00019592,2]
[360071525,1746537041394,-846.636571,0.00019592,2]
[360071526,1746537041403,-450.0,0.00019592,2]
[360071528,1746537041413,-450.0,0.00019592,2]
[360071530,1746537041422,-470.0,0.00019592,2]
[360071532,1746537041431,-450.0,0.00019592,2]
[360071534,1746537041440,-450.0,0.00019592,2]
[360071536,1746537041449,-980.397701,0.00019592,2]
[360071538,1746537041459,-450.0,0.00019592,2]
[360071540,1746537041468,-450.0,0.00019592,2]
[360071542,1746537041477,-450.0,0.00019592,2]
[360071544,1746537041487,-450.0,0.00019592,2]
[360071546,1746537041497,-318.61895525,0.00019592,2]
[360071548,1746537041506,-450.0,0.00019592,2]
[360071550,1746537041515,-450.0,0.00019592,2]
[360071552,1746537041524,-1134.450667,0.00019592,2]
[360071554,1746537041533,-450.0,0.00019592,2]
[360071556,1746537041542,-450.0,0.00019592,2]
[360071558,1746537041551,-450.0,0.00019592,2]
[360071560,1746537041560,-450.0,0.00019592,2]
[360071562,1746537041570,-705.89,0.00019592,2]
[360071564,1746537041579,-450.0,0.00019592,2]
[360071566,1746537041588,-450.0,0.00019592,2]
[360071568,1746537041598,-469.57039548,0.00019592,2]
[360071570,1746537041607,-5102.2433,0.00019593,2]
[360071572,1746537041616,-8740.6536,0.00019593,2]